Workbook

Sheet Лист1
A2: № | B2: ДАТА | C2: НОМЕР | D2: ДОП НОМЕР | E2: ПОЗИЦИЯ | F2: НАЗВАНИЕ
A3: 1 | B3: 2024-07-30 | C3: A2 | E3: =IF(D3="","",COUNTIF($D$3:D3,D3)) ->  | F3: Название
A4: =A3+1 -> 2 | B4: 2024-07-30 | C4: A4 | E4: =IF(D4="","",COUNTIF($D$3:D4,D4)) ->  | F4: Стул
A5: 3 | B5: 2024-07-30 | C5: A1-1 | D5: A1 | E5: =IF(D5="","",COUNTIF($D$3:D5,D5)) -> 1 | F5: Название
A6: 4 | B6: 2024-07-30 | C6: A3-1 | D6: A3 | E6: =IF(D6="","",COUNTIF($D$3:D6,D6)) -> 1 | F6: Название
A7: 5 | B7: 2024-07-30 | C7: A3-2 | D7: A3 | E7: =IF(D7="","",COUNTIF($D$3:D7,D7)) -> 2 | F7: Название
A8: 6 | B8: 2024-07-31 | C8: A5 | E8: =IF(D8="","",COUNTIF($D$3:D8,D8)) ->  | F8: Название
A9: 7 | B9: 2024-08-01 | C9: A6 | E9: =IF(D9="","",COUNTIF($D$3:D9,D9)) ->  | F9: Название
A10: 8 | B10: 2024-08-02 | C10: A7 | E10: =IF(D10="","",COUNTIF($D$3:D10,D10)) ->  | F10: Название
A11: 9 | B11: 2024-08-02 | C11: A8-1 | D11: A8 | E11: =IF(D11="","",COUNTIF($D$3:D11,D11)) -> 1
A12: 10 | B12: 2024-08-02 | C12: A8-2 | D12: A8 | E12: =IF(D12="","",COUNTIF($D$3:D12,D12)) -> 2
A13: 11 | B13: 2024-08-02 | C13: A8-3 | D13: A8 | E13: =IF(D13="","",COUNTIF($D$3:D13,D13)) -> 3
A14: 12 | B14: 2024-08-02 | C14: A8-4 | D14: A8 | E14: =IF(D14="","",COUNTIF($D$3:D14,D14)) -> 4
A15: 13 | B15: 2024-08-02 | C15: A9 | E15: =IF(D15="","",COUNTIF($D$3:D15,D15)) -> 
A16: 14 | B16: 2024-08-02 | C16: A10 | E16: =IF(D16="","",COUNTIF($D$3:D16,D16)) -> 
A17: 15 | B17: 2024-08-02 | C17: A11 | E17: =IF(D17="","",COUNTIF($D$3:D17,D17)) -> 
A18: 16 | B18: 2024-08-02 | C18: A12 | E18: =IF(D18="","",COUNTIF($D$3:D18,D18)) -> 
A19: 17 | B19: 2024-08-02 | C19: A13-1 | D19: A13 | E19: =IF(D19="","",COUNTIF($D$3:D19,D19)) -> 1
A20: 18 | B20: 2024-08-02 | C20: A13-2 | D20: A13 | E20: =IF(D20="","",COUNTIF($D$3:D20,D20)) -> 2
A21: 19 | B21: 2024-08-02 | C21: A13-3 | D21: A13 | E21: =IF(D21="","",COUNTIF($D$3:D21,D21)) -> 3
A22: 20 | B22: 2024-08-02 | C22: A13-4 | D22: A13 | E22: =IF(D22="","",COUNTIF($D$3:D22,D22)) -> 4
A23: 21 | B23: 2024-08-02 | C23: A14 | E23: =IF(D23="","",COUNTIF($D$3:D23,D23)) -> 
A24: 22 | B24: 2024-08-02 | C24: A15 | E24: =IF(D24="","",COUNTIF($D$3:D24,D24)) -> 
A25: 23 | B25: 2024-08-02 | C25: A16 | E25: =IF(D25="","",COUNTIF($D$3:D25,D25)) -> 
A26: 24 | B26: 2024-08-02 | C26: A17 | E26: =IF(D26="","",COUNTIF($D$3:D26,D26)) -> 
A27: 25 | B27: 2024-08-02 | C27: A18 | E27: =IF(D27="","",COUNTIF($D$3:D27,D27)) -> 
A28: 26 | B28: 2024-08-02 | C28: A19 | E28: =IF(D28="","",COUNTIF($D$3:D28,D28)) -> 
A29: 27 | B29: 2024-08-02 | C29: A20 | E29: =IF(D29="","",COUNTIF($D$3:D29,D29)) -> 
A30: 28 | B30: 2024-08-02 | C30: A21 | E30: =IF(D30="","",COUNTIF($D$3:D30,D30)) -> 
A31: 29 | B31: 2024-08-02 | C31: A22 | E31: =IF(D31="","",COUNTIF($D$3:D31,D31)) -> 
A32: 30 | B32: 2024-08-02 | C32: A23 | E32: =IF(D32="","",COUNTIF($D$3:D32,D32)) -> 
A33: 31 | B33: 2024-08-02 | C33: A24 | E33: =IF(D33="","",COUNTIF($D$3:D33,D33)) -> 
A34: 32 | B34: 2024-08-02 | C34: A25 | E34: =IF(D34="","",COUNTIF($D$3:D34,D34)) -> 
A35: 33 | B35: 2024-08-02 | C35: A26 | E35: =IF(D35="","",COUNTIF($D$3:D35,D35)) -> 
A36: 34 | B36: 2024-08-02 | C36: A27 | E36: =IF(D36="","",COUNTIF($D$3:D36,D36)) -> 
A37: 35 | B37: 2024-08-02 | C37: A28 | E37: =IF(D37="","",COUNTIF($D$3:D37,D37)) -> 
A38: 36 | B38: 2024-08-02 | C38: A29 | E38: =IF(D38="","",COUNTIF($D$3:D38,D38)) -> 
A39: 37 | B39: 2024-08-02 | C39: A30 | E39: =IF(D39="","",COUNTIF($D$3:D39,D39)) -> 
A40: 38 | B40: 2024-08-02 | C40: A31 | E40: =IF(D40="","",COUNTIF($D$3:D40,D40)) -> 
A41: 39 | B41: 2024-08-02 | C41: A32 | E41: =IF(D41="","",COUNTIF($D$3:D41,D41)) -> 
A42: 40 | B42: 2024-08-02 | C42: A33 | E42: =IF(D42="","",COUNTIF($D$3:D42,D42)) -> 
A43: 41 | B43: 2024-08-02 | C43: A34 | E43: =IF(D43="","",COUNTIF($D$3:D43,D43)) -> 
A44: 42 | B44: 2024-08-02 | C44: A35 | E44: =IF(D44="","",COUNTIF($D$3:D44,D44)) -> 
A45: 43 | B45: 2024-08-02 | C45: A36 | E45: =IF(D45="","",COUNTIF($D$3:D45,D45)) -> 
A46: 44 | B46: 2024-08-02 | C46: A37 | E46: =IF(D46="","",COUNTIF($D$3:D46,D46)) -> 
A47: 45 | B47: 2024-08-02 | C47: A44-1 | D47: A44 | E47: =IF(D47="","",COUNTIF($D$3:D47,D47)) -> 1
A48: 46 | B48: 2024-08-02 | C48: A44-2 | D48: A44 | E48: =IF(D48="","",COUNTIF($D$3:D48,D48)) -> 2
A49: 47 | B49: 2024-08-02 | C49: A44-3 | D49: A44 | E49: =IF(D49="","",COUNTIF($D$3:D49,D49)) -> 3
A50: 48 | B50: 2024-08-02 | C50: A44-4 | D50: A44 | E50: =IF(D50="","",COUNTIF($D$3:D50,D50)) -> 4
A51: 49 | B51: 2024-08-02 | C51: A44-5 | D51: A44 | E51: =IF(D51="","",COUNTIF($D$3:D51,D51)) -> 5
A52: 50 | B52: 2024-08-02 | C52: A44-6 | D52: A44 | E52: =IF(D52="","",COUNTIF($D$3:D52,D52)) -> 6
A53: 51 | B53: 2024-08-02 | C53: A44-7 | D53: A44 | E53: =IF(D53="","",COUNTIF($D$3:D53,D53)) -> 7
A54: 52 | B54: 2024-08-02 | C54: A44-8 | D54: A44 | E54: =IF(D54="","",COUNTIF($D$3:D54,D54)) -> 8
A55: 53 | B55: 2024-08-02 | C55: A44-9 | D55: A44 | E55: =IF(D55="","",COUNTIF($D$3:D55,D55)) -> 9
A56: 54 | B56: 2024-08-02 | C56: A44-10 | D56: A44 | E56: =IF(D56="","",COUNTIF($D$3:D56,D56)) -> 10
A57: 55 | B57: 2024-08-02 | C57: A38 | E57: =IF(D57="","",COUNTIF($D$3:D57,D57)) -> 
A58: 56 | B58: 2024-08-02 | C58: A39 | E58: =IF(D58="","",COUNTIF($D$3:D58,D58)) -> 
A59: 57 | B59: 2024-08-02 | C59: A40 | E59: =IF(D59="","",COUNTIF($D$3:D59,D59)) -> 
A60: 58 | B60: 2024-08-02 | C60: A41 | E60: =IF(D60="","",COUNTIF($D$3:D60,D60)) -> 
A61: 59 | B61: 2024-08-02 | C61: A42 | E61: =IF(D61="","",COUNTIF($D$3:D61,D61)) -> 
A62: 60 | B62: 2024-08-02 | C62: A43 | E62: =IF(D62="","",COUNTIF($D$3:D62,D62)) -> 
A63: 61 | B63: 2024-08-02 | C63: A45 | E63: =IF(D63="","",COUNTIF($D$3:D63,D63)) -> 
A64: 62 | B64: 2024-08-02 | C64: A46 | E64: =IF(D64="","",COUNTIF($D$3:D64,D64)) -> 
A65: 63 | B65: 2024-08-02 | C65: A47 | E65: =IF(D65="","",COUNTIF($D$3:D65,D65)) -> 
A66: 64 | B66: 2024-08-02 | C66: A48 | E66: =IF(D66="","",COUNTIF($D$3:D66,D66)) -> 
A67: 65 | B67: 2024-08-02 | C67: A49 | E67: =IF(D67="","",COUNTIF($D$3:D67,D67)) -> 
A68: =A67+1 -> 66 | B68: 2024-08-02 | C68: A50 | E68: =IF(D68="","",COUNTIF($D$3:D68,D68)) -> 
A69: 67 | B69: 2024-08-02 | C69: A51 | E69: =IF(D69="","",COUNTIF($D$3:D69,D69)) -> 
A70: 68 | B70: 2024-08-02 | C70: A52 | E70: =IF(D70="","",COUNTIF($D$3:D70,D70)) -> 
A71: 69 | B71: 2024-08-02 | C71: A53 | E71: =IF(D71="","",COUNTIF($D$3:D71,D71)) -> 
A72: 70 | B72: 2024-08-02 | C72: A54 | E72: =IF(D72="","",COUNTIF($D$3:D72,D72)) -> 
A73: 71 | B73: 2024-08-02 | C73: A55 | E73: =IF(D73="","",COUNTIF($D$3:D73,D73)) -> 
A74: 72 | B74: 2024-08-02 | C74: A56 | E74: =IF(D74="","",COUNTIF($D$3:D74,D74)) -> 
A75: 73 | B75: 2024-08-02 | C75: A57 | E75: =IF(D75="","",COUNTIF($D$3:D75,D75)) -> 
A76: 74 | B76: 2024-08-02 | C76: A58 | E76: =IF(D76="","",COUNTIF($D$3:D76,D76)) -> 
A77: 75 | B77: 2024-08-02 | C77: A59 | E77: =IF(D77="","",COUNTIF($D$3:D77,D77)) -> 
A78: 76 | B78: 2024-08-02 | C78: A60 | E78: =IF(D78="","",COUNTIF($D$3:D78,D78)) -> 
A79: 77 | B79: 2024-08-02 | C79: A61 | E79: =IF(D79="","",COUNTIF($D$3:D79,D79)) -> 
A80: 78 | B80: 2024-08-02 | C80: A62 | E80: =IF(D80="","",COUNTIF($D$3:D80,D80)) -> 
A81: 79 | B81: 2024-08-02 | C81: A63 | E81: =IF(D81="","",COUNTIF($D$3:D81,D81)) -> 
A82: 80 | B82: 2024-08-02 | C82: A64 | E82: =IF(D82="","",COUNTIF($D$3:D82,D82)) -> 
A83: 81 | B83: 2024-08-02 | C83: A65 | E83: =IF(D83="","",COUNTIF($D$3:D83,D83)) -> 
A84: 82 | B84: 2024-08-02 | C84: A66 | E84: =IF(D84="","",COUNTIF($D$3:D84,D84)) -> 
A85: 83 | B85: 2024-08-02 | C85: A67 | E85: =IF(D85="","",COUNTIF($D$3:D85,D85)) -> 
A86: 84 | B86: 2024-08-02 | C86: A68 | E86: =IF(D86="","",COUNTIF($D$3:D86,D86)) -> 
A87: 85 | B87: 2024-08-02 | C87: A69 | E87: =IF(D87="","",COUNTIF($D$3:D87,D87)) -> 
A88: 86 | B88: 2024-08-02 | C88: A70 | E88: =IF(D88="","",COUNTIF($D$3:D88,D88)) -> 
A89: 87 | B89: 2024-08-02 | C89: A71 | E89: =IF(D89="","",COUNTIF($D$3:D89,D89)) -> 
A90: 88 | B90: 2024-08-02 | C90: A72 | E90: =IF(D90="","",COUNTIF($D$3:D90,D90)) -> 
A91: 89 | B91: 2024-08-02 | C91: A73 | E91: =IF(D91="","",COUNTIF($D$3:D91,D91)) -> 
A92: 90 | B92: 2024-08-02 | C92: A74 | E92: =IF(D92="","",COUNTIF($D$3:D92,D92)) -> 
A93: 91 | B93: 2024-08-02 | C93: A91-1 | D93: A91 | E93: =IF(D93="","",COUNTIF($D$3:D93,D93)) -> 1
A94: 92 | B94: 2024-08-02 | C94: A91-2 | D94: A91 | E94: =IF(D94="","",COUNTIF($D$3:D94,D94)) -> 2
A95: 93 | B95: 2024-08-02 | C95: A91-3 | D95: A91 | E95: =IF(D95="","",COUNTIF($D$3:D95,D95)) -> 3
A96: 94 | B96: 2024-08-02 | C96: A91-4 | D96: A91 | E96: =IF(D96="","",COUNTIF($D$3:D96,D96)) -> 4
A97: 95 | B97: 2024-08-02 | C97: A91-5 | D97: A91 | E97: =IF(D97="","",COUNTIF($D$3:D97,D97)) -> 5
A98: 96 | B98: 2024-08-02 | C98: A91-6 | D98: A91 | E98: =IF(D98="","",COUNTIF($D$3:D98,D98)) -> 6
A99: 97 | B99: 2024-08-02 | C99: A91-7 | D99: A91 | E99: =IF(D99="","",COUNTIF($D$3:D99,D99)) -> 7
A100: 98 | B100: 2024-08-02 | C100: A91-8 | D100: A91 | E100: =IF(D100="","",COUNTIF($D$3:D100,D100)) -> 8
A101: =A100+1 -> 99 | B101: 2024-08-02 | C101: A91-9 | D101: A91 | E101: =IF(D101="","",COUNTIF($D$3:D101,D101)) -> 9
A102: 100 | B102: 2024-08-02 | C102: A75 | E102: =IF(D102="","",COUNTIF($D$3:D102,D102)) -> 
A103: 101 | B103: 2024-08-02 | C103: A76 | E103: =IF(D103="","",COUNTIF($D$3:D103,D103)) -> 
A104: 102 | B104: 2024-08-02 | C104: A77 | E104: =IF(D104="","",COUNTIF($D$3:D104,D104)) -> 
A105: 103 | B105: 2024-08-02 | C105: A78 | E105: =IF(D105="","",COUNTIF($D$3:D105,D105)) -> 
A106: 104 | B106: 2024-08-02 | C106: A79 | E106: =IF(D106="","",COUNTIF($D$3:D106,D106)) -> 
A107: 105 | B107: 2024-08-02 | C107: A80 | E107: =IF(D107="","",COUNTIF($D$3:D107,D107)) -> 
A108: 106 | B108: 2024-08-02 | C108: A81 | E108: =IF(D108="","",COUNTIF($D$3:D108,D108)) -> 
A109: 107 | B109: 2024-08-02 | C109: A82 | E109: =IF(D109="","",COUNTIF($D$3:D109,D109)) -> 
A110: 108 | B110: 2024-08-02 | C110: A83 | E110: =IF(D110="","",COUNTIF($D$3:D110,D110)) -> 
A111: 109 | B111: 2024-08-02 | C111: A84 | E111: =IF(D111="","",COUNTIF($D$3:D111,D111)) -> 
A112: 110 | B112: 2024-08-02 | C112: A85 | E112: =IF(D112="","",COUNTIF($D$3:D112,D112)) -> 
A113: 111 | B113: 2024-08-02 | C113: A86 | E113: =IF(D113="","",COUNTIF($D$3:D113,D113)) -> 
A114: 112 | B114: 2024-08-02 | C114: A87 | E114: =IF(D114="","",COUNTIF($D$3:D114,D114)) -> 
A115: 113 | B115: 2024-08-02 | C115: A88 | E115: =IF(D115="","",COUNTIF($D$3:D115,D115)) -> 
A116: 114 | B116: 2024-08-02 | C116: A89 | E116: =IF(D116="","",COUNTIF($D$3:D116,D116)) -> 
A117: 115 | B117: 2024-08-02 | C117: A90 | E117: =IF(D117="","",COUNTIF($D$3:D117,D117)) -> 
A118: 116 | B118: 2024-08-02 | C118: A92 | E118: =IF(D118="","",COUNTIF($D$3:D118,D118)) -> 
A119: 117 | B119: 2024-08-02 | C119: A93 | E119: =IF(D119="","",COUNTIF($D$3:D119,D119)) -> 
A120: 118 | B120: 2024-08-02 | C120: A94 | E120: =IF(D120="","",COUNTIF($D$3:D120,D120)) -> 
A121: 119 | B121: 2024-08-02 | C121: A95 | E121: =IF(D121="","",COUNTIF($D$3:D121,D121)) -> 
A122: 120 | B122: 2024-08-02 | C122: A96 | E122: =IF(D122="","",COUNTIF($D$3:D122,D122)) -> 
A123: 121 | B123: 2024-08-02 | C123: A97 | E123: =IF(D123="","",COUNTIF($D$3:D123,D123)) -> 
A124: 122 | B124: 2024-08-02 | C124: A98 | E124: =IF(D124="","",COUNTIF($D$3:D124,D124)) -> 
A125: 123 | B125: 2024-08-02 | C125: A99 | E125: =IF(D125="","",COUNTIF($D$3:D125,D125)) -> 
A126: 124 | B126: 2024-08-02 | C126: A100 | E126: =IF(D126="","",COUNTIF($D$3:D126,D126)) -> 
A127: 125 | B127: 2024-08-02 | C127: A101 | E127: =IF(D127="","",COUNTIF($D$3:D127,D127)) -> 
A128: 126 | B128: 2024-08-02 | C128: A102 | E128: =IF(D128="","",COUNTIF($D$3:D128,D128)) -> 
A129: 127 | B129: 2024-08-02 | C129: A103 | E129: =IF(D129="","",COUNTIF($D$3:D129,D129)) -> 
A130: 128 | B130: 2024-08-02 | C130: A104 | E130: =IF(D130="","",COUNTIF($D$3:D130,D130)) -> 
A131: 129 | B131: 2024-08-02 | C131: A105 | E131: =IF(D131="","",COUNTIF($D$3:D131,D131)) -> 
A132: 130 | B132: 2024-08-02 | C132: A106 | E132: =IF(D132="","",COUNTIF($D$3:D132,D132)) -> 
A133: 131 | B133: 2024-08-02 | C133: A130-1 | D133: A130 | E133: =IF(D133="","",COUNTIF($D$3:D133,D133)) -> 1
A134: 132 | B134: 2024-08-02 | C134: A130-2 | D134: A130 | E134: =IF(D134="","",COUNTIF($D$3:D134,D134)) -> 2
A135: 133 | B135: 2024-08-02 | C135: A130-3 | D135: A130 | E135: =IF(D135="","",COUNTIF($D$3:D135,D135)) -> 3
A136: 134 | B136: 2024-08-02 | C136: A130-4 | D136: A130 | E136: =IF(D136="","",COUNTIF($D$3:D136,D136)) -> 4
A137: 135 | B137: 2024-08-02 | C137: A130-5 | D137: A130 | E137: =IF(D137="","",COUNTIF($D$3:D137,D137)) -> 5
A138: 136 | B138: 2024-08-02 | C138: A130-6 | D138: A130 | E138: =IF(D138="","",COUNTIF($D$3:D138,D138)) -> 6
A139: 137 | B139: 2024-08-02 | C139: A130-7 | D139: A130 | E139: =IF(D139="","",COUNTIF($D$3:D139,D139)) -> 7
A140: 138 | B140: 2024-08-02 | C140: A130-8 | D140: A130 | E140: =IF(D140="","",COUNTIF($D$3:D140,D140)) -> 8
A141: 139 | B141: 2024-08-02 | C141: A130-9 | D141: A130 | E141: =IF(D141="","",COUNTIF($D$3:D141,D141)) -> 9
A142: 140 | B142: 2024-08-02 | C142: A107 | E142: =IF(D142="","",COUNTIF($D$3:D142,D142)) -> 
A143: 141 | B143: 2024-08-02 | C143: A108 | E143: =IF(D143="","",COUNTIF($D$3:D143,D143)) -> 
A144: 142 | B144: 2024-08-02 | C144: A109 | E144: =IF(D144="","",COUNTIF($D$3:D144,D144)) -> 
A145: 143 | B145: 2024-08-02 | C145: A110 | E145: =IF(D145="","",COUNTIF($D$3:D145,D145)) -> 
A146: 144 | B146: 2024-08-02 | C146: A111 | E146: =IF(D146="","",COUNTIF($D$3:D146,D146)) -> 
A147: 145 | B147: 2024-08-02 | C147: A112 | E147: =IF(D147="","",COUNTIF($D$3:D147,D147)) -> 
A148: 146 | B148: 2024-08-02 | C148: A113 | E148: =IF(D148="","",COUNTIF($D$3:D148,D148)) -> 
A149: 147 | B149: 2024-08-02 | C149: A114 | E149: =IF(D149="","",COUNTIF($D$3:D149,D149)) -> 
A150: 148 | B150: 2024-08-02 | C150: A115 | E150: =IF(D150="","",COUNTIF($D$3:D150,D150)) -> 
A151: 149 | B151: 2024-08-02 | C151: A116 | E151: =IF(D151="","",COUNTIF($D$3:D151,D151)) -> 
A152: 150 | B152: 2024-08-02 | C152: A117 | E152: =IF(D152="","",COUNTIF($D$3:D152,D152)) -> 
A153: 151 | B153: 2024-08-02 | C153: A118 | E153: =IF(D153="","",COUNTIF($D$3:D153,D153)) -> 
A154: 152 | B154: 2024-08-02 | C154: A119 | E154: =IF(D154="","",COUNTIF($D$3:D154,D154)) -> 
A155: 153 | B155: 2024-08-02 | C155: A120 | E155: =IF(D155="","",COUNTIF($D$3:D155,D155)) -> 
A156: 154 | B156: 2024-08-02 | C156: A121 | E156: =IF(D156="","",COUNTIF($D$3:D156,D156)) -> 
A157: 155 | B157: 2024-08-02 | C157: A122 | E157: =IF(D157="","",COUNTIF($D$3:D157,D157)) -> 
A158: 156 | B158: 2024-08-02 | C158: A123 | E158: =IF(D158="","",COUNTIF($D$3:D158,D158)) -> 
A159: 157 | B159: 2024-08-02 | C159: A124 | E159: =IF(D159="","",COUNTIF($D$3:D159,D159)) -> 
A160: 158 | B160: 2024-08-02 | C160: A125 | E160: =IF(D160="","",COUNTIF($D$3:D160,D160)) -> 
A161: 159 | B161: 2024-08-02 | C161: A126 | E161: =IF(D161="","",COUNTIF($D$3:D161,D161)) -> 
A162: 160 | B162: 2024-08-02 | C162: A127 | E162: =IF(D162="","",COUNTIF($D$3:D162,D162)) -> 
A163: 161 | B163: 2024-08-02 | C163: A128 | E163: =IF(D163="","",COUNTIF($D$3:D163,D163)) -> 
A164: 162 | B164: 2024-08-02 | C164: A129 | E164: =IF(D164="","",COUNTIF($D$3:D164,D164)) -> 
A165: =A164+1 -> 163 | B165: 2024-08-02 | C165: A131 | E165: =IF(D165="","",COUNTIF($D$3:D165,D165)) -> 
A166: 164 | B166: 2024-08-02 | C166: A132 | E166: =IF(D166="","",COUNTIF($D$3:D166,D166)) -> 
A167: 165 | B167: 2024-08-02 | C167: A133 | E167: =IF(D167="","",COUNTIF($D$3:D167,D167)) -> 
A168: 166 | B168: 2024-08-02 | C168: A134 | E168: =IF(D168="","",COUNTIF($D$3:D168,D168)) -> 
A169: 167 | B169: 2024-08-02 | C169: A135 | E169: =IF(D169="","",COUNTIF($D$3:D169,D169)) -> 
A170: 168 | B170: 2024-08-02 | C170: A136 | E170: =IF(D170="","",COUNTIF($D$3:D170,D170)) -> 
A171: 169 | B171: 2024-08-02 | C171: A137 | E171: =IF(D171="","",COUNTIF($D$3:D171,D171)) -> 
A172: 170 | B172: 2024-08-02 | C172: A138 | E172: =IF(D172="","",COUNTIF($D$3:D172,D172)) -> 
A173: 171 | B173: 2024-08-02 | C173: A139 | E173: =IF(D173="","",COUNTIF($D$3:D173,D173)) -> 
A174: 172 | B174: 2024-08-02 | C174: A140 | E174: =IF(D174="","",COUNTIF($D$3:D174,D174)) -> 
A175: 173 | B175: 2024-08-02 | C175: A141 | E175: =IF(D175="","",COUNTIF($D$3:D175,D175)) -> 
A176: 174 | B176: 2024-08-02 | C176: A142 | E176: =IF(D176="","",COUNTIF($D$3:D176,D176)) -> 
A177: 175 | B177: 2024-08-02 | C177: A143 | E177: =IF(D177="","",COUNTIF($D$3:D177,D177)) -> 
A178: 176 | B178: 2024-08-02 | C178: A144 | E178: =IF(D178="","",COUNTIF($D$3:D178,D178)) -> 
A179: 177 | B179: 2024-08-02 | C179: A145 | E179: =IF(D179="","",COUNTIF($D$3:D179,D179)) -> 
A180: 178 | B180: 2024-08-02 | C180: A146 | E180: =IF(D180="","",COUNTIF($D$3:D180,D180)) -> 
A181: 179 | B181: 2024-08-02 | C181: A147 | E181: =IF(D181="","",COUNTIF($D$3:D181,D181)) -> 
A182: 180 | B182: 2024-08-02 | C182: A148 | E182: =IF(D182="","",COUNTIF($D$3:D182,D182)) -> 
A183: 181 | B183: 2024-08-02 | C183: A149 | E183: =IF(D183="","",COUNTIF($D$3:D183,D183)) -> 
A184: 182 | B184: 2024-08-02 | C184: A150 | E184: =IF(D184="","",COUNTIF($D$3:D184,D184)) -> 
A185: 183 | B185: 2024-08-02 | C185: A151 | E185: =IF(D185="","",COUNTIF($D$3:D185,D185)) -> 
A186: 184 | B186: 2024-08-02 | C186: A152 | E186: =IF(D186="","",COUNTIF($D$3:D186,D186)) -> 
A187: 185 | B187: 2024-08-02 | C187: A153 | E187: =IF(D187="","",COUNTIF($D$3:D187,D187)) -> 
A188: 186 | B188: 2024-08-02 | C188: A154 | E188: =IF(D188="","",COUNTIF($D$3:D188,D188)) -> 
A189: 187 | B189: 2024-08-02 | C189: A155 | E189: =IF(D189="","",COUNTIF($D$3:D189,D189)) -> 
A190: 188 | B190: 2024-08-02 | C190: A156 | E190: =IF(D190="","",COUNTIF($D$3:D190,D190)) -> 
A191: 189 | B191: 2024-08-02 | C191: A157 | E191: =IF(D191="","",COUNTIF($D$3:D191,D191)) -> 
A192: 190 | B192: 2024-08-02 | C192: A158 | E192: =IF(D192="","",COUNTIF($D$3:D192,D192)) -> 
A193: 191 | B193: 2024-08-02 | C193: A159 | E193: =IF(D193="","",COUNTIF($D$3:D193,D193)) -> 
A194: 192 | B194: 2024-08-02 | C194: A160 | E194: =IF(D194="","",COUNTIF($D$3:D194,D194)) -> 
A195: 193 | B195: 2024-08-02 | C195: A161 | E195: =IF(D195="","",COUNTIF($D$3:D195,D195)) -> 
A196: 194 | B196: 2024-08-02 | C196: A162 | E196: =IF(D196="","",COUNTIF($D$3:D196,D196)) -> 
A197: 195 | B197: 2024-08-02 | C197: A163 | E197: =IF(D197="","",COUNTIF($D$3:D197,D197)) -> 
A198: 196 | B198: 2024-08-02 | C198: A164 | E198: =IF(D198="","",COUNTIF($D$3:D198,D198)) -> 
A199: 197 | B199: 2024-08-02 | C199: A165 | E199: =IF(D199="","",COUNTIF($D$3:D199,D199)) -> 
A200: 198 | B200: 2024-08-02 | C200: A166 | E200: =IF(D200="","",COUNTIF($D$3:D200,D200)) -> 
A201: 199 | B201: 2024-08-02 | C201: A198-1 | D201: A198 | E201: =IF(D201="","",COUNTIF($D$3:D201,D201)) -> 1
... 1388 more rows
